[Event "*** Titled Tuesday Blitz"]
[Site "Chess.com"]
[Date "2020.04.07"]
[Round "7"]
[White "Taabling"]
[Black "kayrakamer"]
[Result "1-0"]
[WhiteElo "2319"]
[BlackElo "2470"]
[TimeControl "180+1"]
[EndTime "14:19:48 PDT"]
[Termination "Taabling won by checkmate"]

1. e4 {[%clk 0:02:12.5]} 1... c5 {[%clk 0:02:59.5]} 2. Nf3 {[%clk 0:02:08.9]}
2... d6 {[%clk 0:02:59.4]} 3. c3 {[%clk 0:02:07.9]} 3... Nf6 {[%clk 0:02:58.8]}
4. h3 {[%clk 0:02:08.2]} 4... g6 {[%clk 0:02:58.5]} 5. Bd3 {[%clk 0:02:08.6]}
5... Bg7 {[%clk 0:02:58.6]} 6. O-O {[%clk 0:02:09.2]} 6... O-O {[%clk
0:02:58.9]} 7. Re1 {[%clk 0:02:09.8]} 7... Nc6 {[%clk 0:02:59.3]} 8. Bc2 {[%clk
0:02:10.3]} 8... Rb8 {[%clk 0:02:55.9]} 9. d4 {[%clk 0:02:10]} 9... Nd7 {[%clk
0:02:56.2]} 10. d5 {[%clk 0:02:07.3]} 10... Na5 {[%clk 0:02:56.4]} 11. Nbd2
{[%clk 0:01:57.9]} 11... b5 {[%clk 0:02:50.8]} 12. Rb1 {[%clk 0:01:54.7]} 12...
c4 {[%clk 0:02:30.2]} 13. Nf1 {[%clk 0:01:50.9]} 13... b4 {[%clk 0:02:21.6]} 14.
cxb4 {[%clk 0:01:49.9]} 14... Rxb4 {[%clk 0:02:22]} 15. Bd2 {[%clk 0:01:50]}
15... Rxb2 {[%clk 0:02:11.5]} 16. Rxb2 {[%clk 0:01:49.2]} 16... Bxb2 {[%clk
0:02:12.4]} 17. Bh6 {[%clk 0:01:47.8]} 17... Re8 {[%clk 0:02:05.3]} 18. Ne3
{[%clk 0:01:46.8]} 18... Ne5 {[%clk 0:01:51.4]} 19. Nd4 {[%clk 0:01:44.4]} 19...
Qb6 {[%clk 0:01:34.7]} 20. Ne2 {[%clk 0:01:35.9]} 20... Ba6 {[%clk 0:01:25.2]}
21. Qd2 {[%clk 0:01:15.9]} 21... Rb8 {[%clk 0:01:06.2]} 22. Rb1 {[%clk
0:01:12.9]} 22... Qc5 {[%clk 0:00:57.3]} 23. Nc3 {[%clk 0:01:08.7]} 23... Nd3
{[%clk 0:00:31.9]} 24. Bxd3 {[%clk 0:00:53.9]} 24... cxd3 {[%clk 0:00:31.7]} 25.
Na4 {[%clk 0:00:52.8]} 25... Qa3 {[%clk 0:00:24.5]} 26. Rxb2 {[%clk 0:00:51.2]}
26... Rxb2 {[%clk 0:00:23.1]} 27. Qxb2 {[%clk 0:00:47.2]} 27... Qxb2 {[%clk
0:00:17.9]} 28. Nxb2 {[%clk 0:00:48.1]} 28... f6 {[%clk 0:00:15.4]} 29. h4
{[%clk 0:00:45.5]} 29... Kf7 {[%clk 0:00:14.3]} 30. Bf4 {[%clk 0:00:45.3]} 30...
e5 {[%clk 0:00:13.5]} 31. dxe6+ {[%clk 0:00:42.7]} 31... Kxe6 {[%clk 0:00:14]}
32. f3 {[%clk 0:00:43]} 32... Bb5 {[%clk 0:00:13.8]} 33. Kf2 {[%clk 0:00:42.8]}
33... Nc6 {[%clk 0:00:14]} 34. Nd5 {[%clk 0:00:40.2]} 34... Nd4 {[%clk
0:00:12.5]} 35. Nc3 {[%clk 0:00:38.6]} 35... Ba6 {[%clk 0:00:12.2]} 36. Be3
{[%clk 0:00:35.6]} 36... Nc2 {[%clk 0:00:08.7]} 37. Bxa7 {[%clk 0:00:31.4]}
37... f5 {[%clk 0:00:06.8]} 38. Be3 {[%clk 0:00:29.3]} 38... fxe4 {[%clk
0:00:06.3]} 39. fxe4 {[%clk 0:00:29.5]} 39... Bb7 {[%clk 0:00:06.2]} 40. Nxd3
{[%clk 0:00:28.5]} 40... Ba8 {[%clk 0:00:04.6]} 41. Nd5 {[%clk 0:00:27.6]} 41...
Bxd5 {[%clk 0:00:04.1]} 42. Nf4+ {[%clk 0:00:27.7]} 42... Ke5 {[%clk 0:00:04.2]}
43. exd5 {[%clk 0:00:28.2]} 43... Nb4 {[%clk 0:00:03.7]} 44. a4 {[%clk
0:00:27.3]} 44... Na6 {[%clk 0:00:02.8]} 45. a5 {[%clk 0:00:26.7]} 45... Ke4
{[%clk 0:00:03.7]} 46. g3 {[%clk 0:00:24.7]} 46... Nb4 {[%clk 0:00:04.1]} 47.
Bb6 {[%clk 0:00:20.6]} 47... Na6 {[%clk 0:00:04.2]} 48. Ke2 {[%clk 0:00:18.6]}
48... h6 {[%clk 0:00:04.6]} 49. Kd2 {[%clk 0:00:13.4]} 49... g5 {[%clk
0:00:04.6]} 50. hxg5 {[%clk 0:00:14.3]} 50... hxg5 {[%clk 0:00:05.5]} 51. Ne6
{[%clk 0:00:14.5]} 51... Kxd5 {[%clk 0:00:04.9]} 52. Nxg5 {[%clk 0:00:14.6]}
52... Ke5 {[%clk 0:00:05.4]} 53. Nf3+ {[%clk 0:00:14.4]} 53... Kf5 {[%clk
0:00:05]} 54. Ne1 {[%clk 0:00:15.3]} 54... Kg4 {[%clk 0:00:05.4]} 55. Nd3 {[%clk
0:00:15.2]} 55... Kxg3 {[%clk 0:00:05.4]} 56. Kc3 {[%clk 0:00:16.1]} 56... d5
{[%clk 0:00:05.4]} 57. Nb4 {[%clk 0:00:17]} 57... Kf3 {[%clk 0:00:06.2]} 58.
Nxa6 {[%clk 0:00:15.8]} 58... Ke4 {[%clk 0:00:07.1]} 59. Nc7 {[%clk 0:00:15.9]}
59... d4+ {[%clk 0:00:08]} 60. Bxd4 {[%clk 0:00:15.6]} 60... Kf5 {[%clk
0:00:07.6]} 61. a6 {[%clk 0:00:16.5]} 61... Kg6 {[%clk 0:00:07.8]} 62. a7 {[%clk
0:00:17.4]} 62... Kf7 {[%clk 0:00:08.7]} 63. a8=Q {[%clk 0:00:17.3]} 63... Ke7
{[%clk 0:00:09.3]} 64. Qc6 {[%clk 0:00:16]} 64... Kd8 {[%clk 0:00:09.5]} 65. Be5
{[%clk 0:00:13.3]} 65... Kc8 {[%clk 0:00:10.4]} 66. Nb5+ {[%clk 0:00:13]} 66...
Kd8 {[%clk 0:00:11.3]} 67. Bf6# {[%clk 0:00:12.7]} 1-0

[Event "*** Titled Tuesday Blitz"]
[Site "Chess.com"]
[Date "2020.04.07"]
[Round "7"]
[White "maciek_92"]
[Black "riconaipe"]
[Result "1/2-1/2"]
[WhiteElo "2718"]
[BlackElo "2544"]
[TimeControl "180+1"]
[EndTime "14:19:50 PDT"]
[Termination "Game drawn by agreement"]

1. c4 {[%clk 0:03:00.9]} 1... g6 {[%clk 0:02:57.4]} 2. Nc3 {[%clk 0:03:00.8]}
2... Bg7 {[%clk 0:02:58.3]} 3. g3 {[%clk 0:03:01.4]} 3... f5 {[%clk 0:02:58.1]}
4. Bg2 {[%clk 0:03:01]} 4... Nf6 {[%clk 0:02:58.4]} 5. d4 {[%clk 0:03:01.1]}
5... O-O {[%clk 0:02:58.6]} 6. Nf3 {[%clk 0:03:01.7]} 6... e6 {[%clk 0:02:54.6]}
7. d5 {[%clk 0:02:58.7]} 7... Qe7 {[%clk 0:02:52.1]} 8. O-O {[%clk 0:02:33.6]}
8... e5 {[%clk 0:02:51.8]} 9. c5 {[%clk 0:02:17]} 9... d6 {[%clk 0:02:49.8]} 10.
cxd6 {[%clk 0:02:17]} 10... cxd6 {[%clk 0:02:49.3]} 11. Nd2 {[%clk 0:02:17.4]}
11... e4 {[%clk 0:02:44.7]} 12. Nc4 {[%clk 0:02:15.8]} 12... Bd7 {[%clk
0:02:31.1]} 13. Qb3 {[%clk 0:02:06.3]} 13... Na6 {[%clk 0:02:22.4]} 14. Qa3
{[%clk 0:01:39.6]} 14... Nc5 {[%clk 0:01:48]} 15. Bf4 {[%clk 0:01:38.5]} 15...
Ne8 {[%clk 0:01:40.5]} 16. Nxd6 {[%clk 0:01:38]} 16... g5 {[%clk 0:01:11.6]} 17.
Nxe8 {[%clk 0:01:33.5]} 17... Raxe8 {[%clk 0:01:09.6]} 18. d6 {[%clk 0:01:31.7]}
18... Qf6 {[%clk 0:01:02.6]} 19. Qxc5 {[%clk 0:01:07.1]} 19... gxf4 {[%clk
0:01:01.3]} 20. gxf4 {[%clk 0:01:02.4]} 20... Rc8 {[%clk 0:00:50.4]} 21. Qxa7
{[%clk 0:00:52.6]} 21... Bc6 {[%clk 0:00:47.7]} 22. Rad1 {[%clk 0:00:48.6]}
22... Rcd8 {[%clk 0:00:42]} 23. Qc5 {[%clk 0:00:45.7]} 23... Qg6 {[%clk
0:00:38.1]} 24. Kh1 {[%clk 0:00:41.9]} 24... Rf6 {[%clk 0:00:33.5]} 25. Nd5
{[%clk 0:00:39]} 25... Bxd5 {[%clk 0:00:25.7]} 26. Qxd5+ {[%clk 0:00:39.9]}
26... Kh8 {[%clk 0:00:25.2]} 27. d7 {[%clk 0:00:40.5]} 27... Bf8 {[%clk
0:00:22.9]} 28. Rg1 {[%clk 0:00:35.3]} 28... Qh6 {[%clk 0:00:22.4]} 29. Bxe4
{[%clk 0:00:30.5]} 29... Bd6 {[%clk 0:00:16.1]} 30. Rg8+ {[%clk 0:00:15]} 30...
Rxg8 {[%clk 0:00:15.8]} 31. Qxg8+ {[%clk 0:00:15.4]} 31... Kxg8 {[%clk 0:00:16]}
32. d8=Q+ {[%clk 0:00:16.3]} 32... Bf8 {[%clk 0:00:15.1]} 33. Bd5+ {[%clk
0:00:16.2]} 33... Kh8 {[%clk 0:00:14.6]} 34. Rg1 {[%clk 0:00:15.9]} 34... Rg6
{[%clk 0:00:14.7]} 35. Rxg6 {[%clk 0:00:15.7]} 35... hxg6 {[%clk 0:00:15.6]} 36.
e3 {[%clk 0:00:15.7]} 36... Kh7 {[%clk 0:00:14.1]} 37. Qd7+ {[%clk 0:00:15.2]}
37... Bg7 {[%clk 0:00:14.1]} 38. Qxb7 {[%clk 0:00:14.2]} 38... Qh4 {[%clk
0:00:12.6]} 39. Bg2 {[%clk 0:00:08.4]} 39... Qxf2 {[%clk 0:00:12.4]} 40. Qf3
{[%clk 0:00:09.1]} 40... Qe1+ {[%clk 0:00:12]} 41. Bf1 {[%clk 0:00:09.6]} 41...
Qd2 {[%clk 0:00:09.1]} 42. b3 {[%clk 0:00:07.8]} 42... Qxa2 {[%clk 0:00:09.1]}
43. b4 {[%clk 0:00:08]} 43... Qb2 {[%clk 0:00:09.2]} 44. b5 {[%clk 0:00:08.5]}
44... Bh6 {[%clk 0:00:09]} 45. Qe2 {[%clk 0:00:06.1]} 45... Qb1 {[%clk
0:00:08.7]} 46. Kg2 {[%clk 0:00:05.6]} 46... Bg7 {[%clk 0:00:08.9]} 47. Kg3
{[%clk 0:00:05.2]} 47... Bf6 {[%clk 0:00:08.4]} 48. Bg2 {[%clk 0:00:04.8]} 48...
Kh6 {[%clk 0:00:08.7]} 49. Qd2 {[%clk 0:00:04.1]} 49... g5 {[%clk 0:00:08.5]}
50. Bc6 {[%clk 0:00:02.7]} 50... gxf4+ {[%clk 0:00:08.3]} 51. exf4 {[%clk
0:00:03.6]} 51... Qg1+ {[%clk 0:00:08.4]} 52. Kf3 {[%clk 0:00:04]} 52... Qg4+
{[%clk 0:00:08.2]} 53. Ke3 {[%clk 0:00:04.6]} 53... Qh3+ {[%clk 0:00:08]} 54.
Ke2 {[%clk 0:00:04.5]} 54... Qxh2+ {[%clk 0:00:08]} 55. Kd3 {[%clk 0:00:05.2]}
55... Qxd2+ {[%clk 0:00:07.5]} 56. Kxd2 {[%clk 0:00:06.1]} 56... Bd8 {[%clk
0:00:07.9]} 57. Ke3 {[%clk 0:00:06.3]} 57... Kg6 {[%clk 0:00:08]} 58. Bd7 {[%clk
0:00:06.7]} 58... Kf6 {[%clk 0:00:08.1]} 59. Kd4 {[%clk 0:00:07.2]} 59... Bc7
{[%clk 0:00:07.6]} 60. Ke3 {[%clk 0:00:07.8]} 60... Kg6 {[%clk 0:00:06.5]} 61.
Bc6 {[%clk 0:00:08.7]} 61... Kf6 {[%clk 0:00:06.9]} 62. Bf3 {[%clk 0:00:09.2]}
62... Kg6 {[%clk 0:00:07]} 63. Be2 {[%clk 0:00:09.8]} 63... Kf6 {[%clk
0:00:07.4]} 64. Bh5 {[%clk 0:00:10.4]} 64... Ke6 {[%clk 0:00:07.6]} 65. Kd4
{[%clk 0:00:10.3]} 65... Bxf4 {[%clk 0:00:07.1]} 66. Kc5 {[%clk 0:00:09.9]}
1/2-1/2

[Event "*** Titled Tuesday Blitz"]
[Site "Chess.com"]
[Date "2020.04.07"]
[Round "7"]
[White "Bastiandash"]
[Black "skoularikii"]
[Result "0-1"]
[WhiteElo "1959"]
[BlackElo "2460"]
[TimeControl "180+1"]
[EndTime "14:19:50 PDT"]
[Termination "skoularikii won by resignation"]

1. d4 {[%clk 0:03:00.9]} 1... Nf6 {[%clk 0:02:56.6]} 2. Nf3 {[%clk 0:03:01.8]}
2... e6 {[%clk 0:02:49.8]} 3. c3 {[%clk 0:03:02.7]} 3... c5 {[%clk 0:02:48.6]}
4. Bg5 {[%clk 0:03:02.2]} 4... Qb6 {[%clk 0:02:45.9]} 5. Qb3 {[%clk 0:02:55.2]}
5... Qc7 {[%clk 0:02:42.8]} 6. e3 {[%clk 0:02:46.6]} 6... Be7 {[%clk 0:02:40.9]}
7. Nbd2 {[%clk 0:02:44.2]} 7... O-O {[%clk 0:02:36.3]} 8. Bd3 {[%clk 0:02:43]}
8... d5 {[%clk 0:02:35.3]} 9. Qd1 {[%clk 0:02:38.5]} 9... h6 {[%clk 0:02:29.8]}
10. Bf4 {[%clk 0:02:25.4]} 10... Qb6 {[%clk 0:02:25.2]} 11. Rb1 {[%clk
0:01:14.1]} 11... Nc6 {[%clk 0:02:23.3]} 12. O-O {[%clk 0:01:13]} 12... a5
{[%clk 0:02:19.6]} 13. Ne5 {[%clk 0:01:02.1]} 13... a4 {[%clk 0:02:04.9]} 14. a3
{[%clk 0:00:56.6]} 14... Rd8 {[%clk 0:02:03]} 15. Ng4 {[%clk 0:00:45.4]} 15...
Bd7 {[%clk 0:01:46.3]} 16. Nxf6+ {[%clk 0:00:24.1]} 16... Bxf6 {[%clk
0:01:44.9]} 17. Qf3 {[%clk 0:00:23.8]} 17... e5 {[%clk 0:01:41.2]} 18. dxe5
{[%clk 0:00:19.7]} 18... Nxe5 {[%clk 0:01:40.7]} 19. Bxe5 {[%clk 0:00:19.5]}
19... Bxe5 {[%clk 0:01:40.7]} 20. Bf5 {[%clk 0:00:19.4]} 20... Bb5 {[%clk
0:01:35.1]} 21. Rfe1 {[%clk 0:00:17.6]} 21... g6 {[%clk 0:01:30.6]} 22. Bc2
{[%clk 0:00:15.3]} 22... Kg7 {[%clk 0:01:27.8]} 23. h4 {[%clk 0:00:14.8]} 23...
h5 {[%clk 0:01:26.5]} 24. g3 {[%clk 0:00:11.1]} 24... Rd6 {[%clk 0:01:21]} 25.
Qd1 {[%clk 0:00:10]} 25... Bd7 {[%clk 0:01:18.5]} 26. Nf3 {[%clk 0:00:09.9]}
26... Bg4 {[%clk 0:01:18.2]} 27. Bd3 {[%clk 0:00:09.9]} 27... Rf6 {[%clk
0:01:16.7]} 28. Be2 {[%clk 0:00:10]} 28... Qc7 {[%clk 0:01:10.1]} 29. Nxe5
{[%clk 0:00:09.5]} 29... Bxe2 {[%clk 0:01:08.6]} 30. Qxe2 {[%clk 0:00:09.4]}
30... Qxe5 {[%clk 0:01:09]} 31. Rbd1 {[%clk 0:00:09.9]} 31... c4 {[%clk
0:01:00.2]} 32. Rd4 {[%clk 0:00:09.2]} 32... b5 {[%clk 0:00:59.6]} 33. Qd2
{[%clk 0:00:09.3]} 33... Rd8 {[%clk 0:00:58.3]} 34. e4 {[%clk 0:00:09.3]} 34...
Re6 {[%clk 0:00:50.3]} 35. Kf1 {[%clk 0:00:09]} 35... Rde8 {[%clk 0:00:39.8]}
36. Rxd5 {[%clk 0:00:05.9]} 36... Qb8 {[%clk 0:00:39.8]} 37. Rd4 {[%clk
0:00:04.9]} 37... Rf6 {[%clk 0:00:38.9]} 38. Qe3 {[%clk 0:00:04.7]} 38... Re5
{[%clk 0:00:33.9]} 39. Kg2 {[%clk 0:00:05.1]} 39... Qb6 {[%clk 0:00:31.3]} 40.
Rd5 {[%clk 0:00:04.5]} 40... Qe6 {[%clk 0:00:28.9]} 41. Rxe5 {[%clk 0:00:04.3]}
41... Qxe5 {[%clk 0:00:29.1]} 42. Qd4 {[%clk 0:00:05.2]} 42... Qe6 {[%clk
0:00:27.8]} 43. Re2 {[%clk 0:00:05]} 43... Qg4 {[%clk 0:00:27.8]} 44. Qe3 {[%clk
0:00:04.3]} 44... Rd6 {[%clk 0:00:27.2]} 45. f3 {[%clk 0:00:04.5]} 45... Qe6
{[%clk 0:00:26.4]} 46. Rd2 {[%clk 0:00:04]} 46... Qd7 {[%clk 0:00:22.6]} 47.
Rxd6 {[%clk 0:00:04]} 47... Qxd6 {[%clk 0:00:23.3]} 48. Qd4+ {[%clk 0:00:04.9]}
48... Qxd4 {[%clk 0:00:23.4]} 49. cxd4 {[%clk 0:00:05.8]} 49... b4 {[%clk
0:00:24.3]} 50. Kf2 {[%clk 0:00:03.7]} 50... c3 {[%clk 0:00:24]} 51. bxc3 {[%clk
0:00:01.5]} 51... bxa3 {[%clk 0:00:23.7]} 52. Ke2 {[%clk 0:00:02.2]} 52... a2
{[%clk 0:00:24]} 53. c4 {[%clk 0:00:03.1]} 53... a1=Q {[%clk 0:00:24.1]} 0-1

[Event "*** Titled Tuesday Blitz"]
[Site "Chess.com"]
[Date "2020.04.07"]
[Round "7"]
[White "quesfr"]
[Black "Pudor"]
[Result "0-1"]
[WhiteElo "2187"]
[BlackElo "2359"]
[TimeControl "180+1"]
[EndTime "14:19:52 PDT"]
[Termination "Pudor won on time"]

1. e4 {[%clk 0:03:00.9]} 1... c5 {[%clk 0:02:57.9]} 2. c3 {[%clk 0:03:00.5]}
2... e6 {[%clk 0:02:56.7]} 3. d4 {[%clk 0:03:00]} 3... d5 {[%clk 0:02:56.9]} 4.
exd5 {[%clk 0:03:00.9]} 4... Qxd5 {[%clk 0:02:55.4]} 5. Nf3 {[%clk 0:03:00.6]}
5... Nf6 {[%clk 0:02:55]} 6. Be2 {[%clk 0:03:00.8]} 6... cxd4 {[%clk 0:02:51.8]}
7. cxd4 {[%clk 0:02:59.7]} 7... Be7 {[%clk 0:02:52.1]} 8. O-O {[%clk 0:02:59.7]}
8... O-O {[%clk 0:02:51.7]} 9. Nc3 {[%clk 0:02:59.8]} 9... Qd8 {[%clk
0:02:51.7]} 10. Ne5 {[%clk 0:02:58.3]} 10... Nbd7 {[%clk 0:02:50]} 11. Bf3
{[%clk 0:02:55.8]} 11... Nb6 {[%clk 0:02:46]} 12. Be3 {[%clk 0:02:36]} 12...
Nfd5 {[%clk 0:02:42.2]} 13. Qe2 {[%clk 0:02:29.8]} 13... Bf6 {[%clk 0:02:09.3]}
14. Ng4 {[%clk 0:02:15]} 14... Bd7 {[%clk 0:01:54.4]} 15. Nxd5 {[%clk
0:01:55.5]} 15... exd5 {[%clk 0:01:50.4]} 16. Nxf6+ {[%clk 0:01:49.9]} 16...
Qxf6 {[%clk 0:01:51.3]} 17. b3 {[%clk 0:01:47.1]} 17... Rac8 {[%clk 0:01:39.4]}
18. Rfc1 {[%clk 0:01:45.1]} 18... Bf5 {[%clk 0:01:38.1]} 19. Qb5 {[%clk
0:00:35.4]} 19... Qd6 {[%clk 0:01:27.8]} 20. a4 {[%clk 0:00:24.6]} 20... a6
{[%clk 0:01:21.1]} 21. Qe2 {[%clk 0:00:24.5]} 21... Nd7 {[%clk 0:01:10.8]} 22.
Qd2 {[%clk 0:00:20.7]} 22... Nf6 {[%clk 0:01:07.6]} 23. Bf4 {[%clk 0:00:20.2]}
23... Qb6 {[%clk 0:01:04.6]} 24. Bd1 {[%clk 0:00:18.2]} 24... Ne4 {[%clk
0:01:01.6]} 25. Qb2 {[%clk 0:00:18.1]} 25... Qb4 {[%clk 0:00:54.4]} 26. Bf3
{[%clk 0:00:16.8]} 26... h6 {[%clk 0:00:41]} 27. h3 {[%clk 0:00:16.8]} 27... Rc6
{[%clk 0:00:33.4]} 28. Rxc6 {[%clk 0:00:16.5]} 28... bxc6 {[%clk 0:00:34.3]} 29.
Bxe4 {[%clk 0:00:15.5]} 29... Bxe4 {[%clk 0:00:32.2]} 30. Rc1 {[%clk 0:00:15.3]}
30... Rc8 {[%clk 0:00:23]} 31. Qc3 {[%clk 0:00:15.4]} 31... Qb7 {[%clk
0:00:19.2]} 32. Be5 {[%clk 0:00:15.4]} 32... Bg6 {[%clk 0:00:18.3]} 33. Qg3
{[%clk 0:00:14.4]} 33... Qb4 {[%clk 0:00:14.7]} 34. h4 {[%clk 0:00:14.3]} 34...
Qd2 {[%clk 0:00:14.5]} 35. Rf1 {[%clk 0:00:11.6]} 35... Qd3 {[%clk 0:00:10.7]}
36. Qxd3 {[%clk 0:00:09.7]} 36... Bxd3 {[%clk 0:00:11.6]} 37. Rc1 {[%clk
0:00:09.7]} 37... Kf8 {[%clk 0:00:10.9]} 38. f3 {[%clk 0:00:09.7]} 38... Ke7
{[%clk 0:00:10.6]} 39. Kf2 {[%clk 0:00:10]} 39... Ke6 {[%clk 0:00:10.5]} 40. Ke3
{[%clk 0:00:09.4]} 40... f6 {[%clk 0:00:09]} 41. Kxd3 {[%clk 0:00:08.7]} 41...
fxe5 {[%clk 0:00:08.9]} 42. Re1 {[%clk 0:00:08.8]} 42... Kd6 {[%clk 0:00:02.7]}
43. dxe5+ {[%clk 0:00:05.3]} 43... Ke6 {[%clk 0:00:02.4]} 44. f4 {[%clk
0:00:05.4]} 44... c5 {[%clk 0:00:02.5]} 45. g4 {[%clk 0:00:05.4]} 45... g6
{[%clk 0:00:02.5]} 46. Kc3 {[%clk 0:00:04.6]} 46... h5 {[%clk 0:00:01.7]} 47.
gxh5 {[%clk 0:00:03.9]} 47... gxh5 {[%clk 0:00:02.6]} 48. Rg1 {[%clk 0:00:04.2]}
48... Kf5 {[%clk 0:00:02.9]} 49. Rg5+ {[%clk 0:00:03.5]} 49... Kxf4 {[%clk
0:00:03.3]} 50. Rxh5 {[%clk 0:00:03.6]} 50... Ke3 {[%clk 0:00:03.6]} 51. e6
{[%clk 0:00:03]} 51... d4+ {[%clk 0:00:04.5]} 52. Kc2 {[%clk 0:00:01.9]} 52...
d3+ {[%clk 0:00:04.6]} 0-1

[Event "*** Titled Tuesday Blitz"]
[Site "Chess.com"]
[Date "2020.04.07"]
[Round "7"]
[White "djano"]
[Black "reigningmvp"]
[Result "1-0"]
[WhiteElo "2485"]
[BlackElo "2284"]
[TimeControl "180+1"]
[EndTime "14:19:56 PDT"]
[Termination "djano won by resignation"]

1. Nf3 {[%clk 0:03:00.9]} 1... Nf6 {[%clk 0:02:58.8]} 2. g3 {[%clk 0:03:00.9]}
2... g6 {[%clk 0:02:56.7]} 3. Bg2 {[%clk 0:03:01.1]} 3... Bg7 {[%clk 0:02:56.8]}
4. O-O {[%clk 0:03:01.4]} 4... O-O {[%clk 0:02:56.6]} 5. d4 {[%clk 0:03:01.6]}
5... d5 {[%clk 0:02:51.4]} 6. c4 {[%clk 0:03:00.2]} 6... dxc4 {[%clk 0:02:47.7]}
7. Na3 {[%clk 0:02:59.7]} 7... Nc6 {[%clk 0:02:44.5]} 8. Nxc4 {[%clk 0:02:57.7]}
8... Be6 {[%clk 0:02:43.1]} 9. b3 {[%clk 0:02:57.8]} 9... Bd5 {[%clk 0:02:39.6]}
10. Bb2 {[%clk 0:02:55.8]} 10... a5 {[%clk 0:02:38.2]} 11. e3 {[%clk 0:02:48.8]}
11... a4 {[%clk 0:02:38.1]} 12. Re1 {[%clk 0:02:42.8]} 12... axb3 {[%clk
0:02:19.9]} 13. axb3 {[%clk 0:02:43.7]} 13... Rxa1 {[%clk 0:02:15.7]} 14. Qxa1
{[%clk 0:02:44.6]} 14... Qa8 {[%clk 0:02:15.5]} 15. Nfe5 {[%clk 0:02:37.6]}
15... Bxg2 {[%clk 0:02:12.3]} 16. Kxg2 {[%clk 0:02:38.5]} 16... Nb4 {[%clk
0:02:08.8]} 17. Qxa8 {[%clk 0:02:19]} 17... Rxa8 {[%clk 0:02:07.7]} 18. Ra1
{[%clk 0:02:19.5]} 18... Rxa1 {[%clk 0:02:02]} 19. Bxa1 {[%clk 0:02:20.4]} 19...
Ne4 {[%clk 0:01:49.8]} 20. Kf3 {[%clk 0:02:12]} 20... Nd6 {[%clk 0:01:47.7]} 21.
Bc3 {[%clk 0:02:04.2]} 21... Nd5 {[%clk 0:01:46.1]} 22. Ba5 {[%clk 0:02:00]}
22... f6 {[%clk 0:01:30.7]} 23. Nd3 {[%clk 0:01:56.8]} 23... b6 {[%clk
0:01:27.6]} 24. Bd2 {[%clk 0:01:53.3]} 24... f5 {[%clk 0:01:27.9]} 25. Nce5
{[%clk 0:01:51.7]} 25... Ne4 {[%clk 0:01:22.3]} 26. Be1 {[%clk 0:01:48.2]} 26...
g5 {[%clk 0:01:14.5]} 27. g4 {[%clk 0:01:42.8]} 27... e6 {[%clk 0:01:13.4]} 28.
h3 {[%clk 0:01:42.1]} 28... Kf8 {[%clk 0:01:08.9]} 29. Ke2 {[%clk 0:01:36.1]}
29... Ke7 {[%clk 0:01:04.1]} 30. f3 {[%clk 0:01:36.3]} 30... Nd6 {[%clk
0:00:56.8]} 31. Bg3 {[%clk 0:01:31.2]} 31... Nc3+ {[%clk 0:00:56.1]} 32. Kd2
{[%clk 0:01:29.1]} 32... Nd5 {[%clk 0:00:56]} 33. Nc6+ {[%clk 0:01:27.8]} 33...
Kd7 {[%clk 0:00:54.2]} 34. Nde5+ {[%clk 0:01:28]} 34... Bxe5 {[%clk 0:00:54.4]}
35. Nxe5+ {[%clk 0:01:27.3]} 35... Ke7 {[%clk 0:00:54.7]} 36. Kd3 {[%clk
0:01:18.3]} 36... Nb4+ {[%clk 0:00:54.2]} 37. Kc3 {[%clk 0:01:17.3]} 37... Nd5+
{[%clk 0:00:54]} 38. Kd3 {[%clk 0:01:17.5]} 38... Nb4+ {[%clk 0:00:54.2]} 39.
Ke2 {[%clk 0:01:17.4]} 39... Nd5 {[%clk 0:00:52.1]} 40. Be1 {[%clk 0:01:15.4]}
40... f4 {[%clk 0:00:45.7]} 41. e4 {[%clk 0:01:09.3]} 41... Ne3 {[%clk
0:00:42.1]} 42. h4 {[%clk 0:01:02.5]} 42... h6 {[%clk 0:00:40.5]} 43. h5 {[%clk
0:01:02.9]} 43... Nc2 {[%clk 0:00:37.2]} 44. Bc3 {[%clk 0:01:00.6]} 44... Nb5
{[%clk 0:00:34.6]} 45. Kd3 {[%clk 0:00:59]} 45... Nxc3 {[%clk 0:00:29.5]} 46.
Kxc2 {[%clk 0:00:52.8]} 46... Nb5 {[%clk 0:00:24.1]} 47. Kd3 {[%clk 0:00:53]}
47... Nd6 {[%clk 0:00:23.1]} 48. Nc6+ {[%clk 0:00:51.9]} 48... Kd7 {[%clk
0:00:21.5]} 49. Nb4 {[%clk 0:00:50.9]} 49... c6 {[%clk 0:00:18.7]} 50. Nc2
{[%clk 0:00:50.1]} 50... Nf7 {[%clk 0:00:18.5]} 51. Na3 {[%clk 0:00:47.1]} 51...
b5 {[%clk 0:00:18.2]} 52. Nc2 {[%clk 0:00:44.3]} 52... e5 {[%clk 0:00:18.3]} 53.
d5 {[%clk 0:00:32.8]} 53... c5 {[%clk 0:00:18.1]} 54. Na3 {[%clk 0:00:32]} 54...
Nd6 {[%clk 0:00:18]} 55. Nc2 {[%clk 0:00:29.9]} 55... Kc7 {[%clk 0:00:18.3]} 56.
Kc3 {[%clk 0:00:28.3]} 56... c4 {[%clk 0:00:18.3]} 57. bxc4 {[%clk 0:00:27.3]}
57... bxc4 {[%clk 0:00:18.6]} 58. Na3 {[%clk 0:00:27.3]} 58... Kb6 {[%clk
0:00:18.5]} 59. Nxc4+ {[%clk 0:00:26.7]} 59... Kc5 {[%clk 0:00:18.9]} 60. Nxd6
{[%clk 0:00:26.8]} 60... Kxd6 {[%clk 0:00:19.8]} 61. Kc4 {[%clk 0:00:26.6]}
61... Kd7 {[%clk 0:00:18.5]} 1-0